fUST/lending_fUST_20250212
["ID","MTS","AMOUNT","RATE_DAILY","PERIOD"]
[352806458,1739333443111,-500.0,0.00013699,2]
[352806459,1739333443120,-500.0,0.00013699,2]
[352806460,1739333443130,-500.0,0.00013699,2]
[352806461,1739333443139,-500.0,0.00013699,2]
[352806462,1739333443149,-500.0,0.00013699,2]
[352806463,1739333443158,-500.0,0.00013699,2]
[352806464,1739333443167,-205.50422138,0.00013699,2]
[352806465,1739333443178,-500.0,0.00013699,2]
[352806466,1739333443188,-500.0,0.00013699,2]
[352806467,1739333443197,-500.0,0.00013699,2]
[352806468,1739333443207,-500.0,0.00013699,2]
[352806469,1739333443217,-500.0,0.00013699,2]
[352806471,1739333443227,-500.0,0.00013699,2]
[352806472,1739333443236,-500.0,0.00013699,2]
[352806473,1739333443246,-500.0,0.00013699,2]
[352806474,1739333443256,-500.0,0.00013699,2]
[352806476,1739333443267,-500.0,0.00013699,2]
[352806478,1739333443277,-500.0,0.00013699,2]
[352806481,1739333443287,-500.0,0.00013699,2]
[352806482,1739333443298,-500.0,0.00013699,2]
[352806483,1739333443308,-500.0,0.00013699,2]
[352806484,1739333443318,-500.0,0.00013699,2]
[352806485,1739333443328,-500.0,0.00013699,2]
[352806486,1739333443338,-500.0,0.00013699,2]
[352806487,1739333443349,-500.0,0.00013699,2]
[352806488,1739333443364,-500.0,0.00013699,2]
[352806489,1739333443373,-500.0,0.00013699,2]
[352806490,1739333443383,-500.0,0.00013699,2]
[352806491,1739333443393,-38046.20232325,0.00013722,2]
[352806492,1739333443404,-172.41216199,0.00013748,2]
[352806493,1739333443414,-503.97714917,0.00013797,2]
[352806494,1739333443424,-1022.41,0.00013797,2]
[352806495,1739333443436,-500.0,0.00013797,2]
[352806496,1739333443446,-500.0,0.00013797,2]
[352806497,1739333443456,-500.0,0.00013797,2]
[352806498,1739333443466,-500.0,0.00013797,2]
[352806499,1739333443476,-500.0,0.00013797,2]
[352806500,1739333443486,-500.0,0.00013797,2]
[352806501,1739333443497,-523.36,0.00013797,2]
[352806502,1739333443507,-656.73,0.00013797,2]
[352806503,1739333443516,-500.0,0.00013797,2]
[352806504,1739333443526,-500.0,0.00013797,2]
[352806505,1739333443535,-500.0,0.00013797,2]
[352806506,1739333443544,-500.0,0.00013797,2]
[352806507,1739333443554,-746.18,0.00013797,2]
[352806508,1739333443564,-500.0,0.00013797,2]
[352806509,1739333443574,-500.0,0.00013797,2]
[352806510,1739333443584,-500.0,0.00013797,2]
[352806511,1739333443594,-500.0,0.00013797,2]
[352806512,1739333443603,-500.0,0.00013797,2]
[352806513,1739333443613,-539.6,0.00013797,2]
[352806514,1739333443622,-946.92,0.00013797,2]
[352806515,1739333443632,-500.0,0.00013797,2]
[352806516,1739333443642,-5775.53,0.00013797,2]
[352806517,1739333443652,-500.0,0.00013797,2]
[352806518,1739333443661,-152.4557013,0.00013797,2]
[352806519,1739333443672,-623.44746129,0.00013797,2]
[352806520,1739333443682,-990.33,0.00013797,2]
[352806521,1739333443691,-500.0,0.00013798,2]
[352806522,1739333443701,-500.0,0.00013798,2]
[352806524,1739333443711,-500.0,0.00013798,2]
[352806527,1739333443720,-500.0,0.00013798,2]
[352806528,1739333443729,-500.0,0.00013798,2]
[352806530,1739333443739,-500.0,0.00013798,2]
[352806532,1739333443748,-522.7426382,0.00013798,2]
[352806534,1739333443758,-500.0,0.00013798,2]
[352806535,1739333443767,-500.0,0.00013798,2]
[352806536,1739333443777,-500.0,0.00013798,2]
[352806537,1739333443787,-500.0,0.00013798,2]
[352806538,1739333443797,-500.0,0.00013798,2]
[352806539,1739333443807,-500.0,0.00013798,2]
[352806540,1739333443816,-500.0,0.00013798,2]
[352806541,1739333443825,-500.0,0.00013798,2]
[352806542,1739333443834,-503.52852237,0.00013798,2]
[352806543,1739333443846,-8515.34,0.00013798,2]
[352806544,1739333443856,-500.0,0.00013798,2]
[352806545,1739333443866,-500.0,0.00013798,2]
[352806546,1739333443876,-212.07100562,0.00013798,2]
[352806547,1739333443886,-3259.9,0.00013798,2]
[352806548,1739333443895,-500.0,0.00013798,2]
[352806549,1739333443905,-307.7234173,0.00013798,2]
[352806550,1739333443915,-500.0,0.00013798,2]
[352806551,1739333443926,-506.52232214,0.00013798,2]
[352806552,1739333443935,-500.0,0.00013798,2]
[352806553,1739333443945,-502.63645887,0.00013798,2]
[352806554,1739333443954,-500.0,0.00013798,2]
[352806555,1739333443963,-500.0,0.00013798,2]
[352806556,1739333443972,-500.0,0.00013798,2]
[352806557,1739333443983,-500.0,0.00013799,2]
[352806558,1739333443992,-500.0,0.000138,2]
[352806559,1739333444002,-500.0,0.000138,2]
[352806560,1739333444012,-2000.0,0.000138,2]
[352806561,1739333444021,-2000.0,0.000138,3]
[352806562,1739333444032,-2000.0,0.000138,4]
[352806563,1739333444042,-2000.0,0.000138,5]
[352806564,1739333444051,-1663.13069505,0.00013822,2]
[352806565,1739333444061,-500.0,0.00013858,2]
[352806566,1739333444070,-500.0,0.00013858,2]
[352806567,1739333444080,-161.2,0.00013904,2]
[352806568,1739333444090,-500.0,0.00013908,2]
[352806569,1739333444099,-659.96207731,0.00013915,2]
[352806570,1739333444110,-1022.41,0.00013934,2]
[352806571,1739333444120,-500.0,0.00013934,2]
[352806572,1739333444130,-500.0,0.00013934,2]
[352806573,1739333444140,-444.6866276,0.00013934,2]
[352806574,1739333444150,-500.0,0.00013934,2]
[352806575,1739333444159,-500.0,0.00013934,2]
[352806576,1739333444168,-500.0,0.00013934,2]
[352806577,1739333444182,-523.36,0.00013934,2]
[352806578,1739333444191,-656.73,0.00013934,2]
[352806579,1739333444201,-500.0,0.00013934,2]
[352806580,1739333444211,-500.0,0.00013934,2]
[352806581,1739333444220,-500.0,0.00013934,2]
[352806582,1739333444230,-500.0,0.00013934,2]
[352806583,1739333444240,-746.18,0.00013934,2]
[352806584,1739333444250,-500.0,0.00013934,2]
[352806585,1739333444260,-500.0,0.00013934,2]
[352806586,1739333444270,-500.0,0.00013934,2]
[352806587,1739333444280,-500.0,0.00013934,2]
[352806588,1739333444290,-500.0,0.00013934,2]
[352806589,1739333444300,-539.6,0.00013934,2]
[352806590,1739333444310,-946.92,0.00013934,2]
[352806591,1739333444319,-500.0,0.00013934,2]
[352806592,1739333444330,-5775.53,0.00013934,2]
[352806593,1739333444339,-990.33,0.00013934,2]
[352806594,1739333444349,-500.0,0.00013935,2]
[352806595,1739333444362,-500.0,0.00013935,2]
[352806596,1739333444372,-501.65998518,0.00013935,2]
[352806597,1739333444383,-504.10535091,0.00013935,2]
[352806598,1739333444394,-505.34928355,0.00013935,2]
[352806599,1739333444405,-500.0,0.00013935,2]
[352806600,1739333444416,-500.0,0.00013935,2]
[352806601,1739333444432,-500.0,0.00013935,2]
[352806602,1739333444444,-500.0,0.00013935,2]
[352806603,1739333444453,-500.0,0.00013935,2]
[352806604,1739333444463,-508.12984906,0.00013935,2]
[352806605,1739333444474,-500.0,0.00013935,2]
[352806606,1739333444484,-500.0,0.00013935,2]
[352806607,1739333444495,-500.0,0.00013935,2]
[352806608,1739333444505,-500.0,0.00013935,2]
[352806609,1739333444514,-8515.34,0.00013935,2]
[352806610,1739333444525,-500.0,0.00013935,2]
[352806611,1739333444534,-350.25997289,0.00013935,2]
[352806612,1739333444545,-3259.9,0.00013935,2]
[352806613,1739333444556,-500.0,0.00013935,2]
[352806614,1739333444567,-500.0,0.00013935,2]
[352806615,1739333444577,-554.7766461,0.00013935,2]
[352806616,1739333444588,-500.0,0.00013935,2]
[352806617,1739333444598,-500.0,0.00013935,2]
[352806618,1739333444608,-500.0,0.00013935,2]
[352806619,1739333444619,-500.0,0.00013936,2]
[352806620,1739333444629,-371.78900568,0.00013937,2]
[352806621,1739333444639,-500.0,0.00013937,2]
[352806622,1739333444649,-500.0,0.00014,7]
[352806623,1739333444658,-500.0,0.00014,7]
[352806624,1739333444667,-500.0,0.00014,7]
[352806625,1739333444682,-500.0,0.00014,7]
[352806626,1739333444703,-500.0,0.00014,7]
[352806627,1739333444712,-500.0,0.00014,7]
[352806628,1739333444721,-500.0,0.00014,7]
[352806629,1739333444731,-500.0,0.00014,7]
[352806630,1739333444740,-500.0,0.00014,7]
[352806631,1739333444751,-500.0,0.00014,7]
[352806632,1739333444760,-500.0,0.00014,7]
[352806633,1739333444770,-500.0,0.00014,7]
[352806634,1739333444780,-500.0,0.00014,7]
[352806635,1739333444789,-500.0,0.00014,7]
[352806636,1739333444799,-500.0,0.00014,7]
[352806637,1739333444809,-500.0,0.00014,7]
[352806638,1739333444818,-500.0,0.00014,7]
[352806639,1739333444827,-500.0,0.00014,7]
[352806640,1739333444836,-500.0,0.00014,7]
[352806641,1739333444846,-500.0,0.00014,7]
[352806642,1739333444855,-500.0,0.00014,7]
[352806643,1739333444865,-500.0,0.00014,7]
[352806644,1739333444876,-500.0,0.00014,7]
[352806645,1739333444885,-500.0,0.00014,7]
[352806646,1739333444894,-500.0,0.00014,7]
[352806647,1739333444904,-500.0,0.00014,7]
[352806648,1739333444914,-500.0,0.00014,7]
[352806649,1739333444926,-500.0,0.00014,7]
[352806650,1739333444936,-500.0,0.00014,7]
[352806651,1739333444945,-500.0,0.00014,7]
[352806652,1739333444954,-500.0,0.00014,7]
[352806653,1739333444964,-500.0,0.00014,7]
[352806654,1739333444975,-500.0,0.00014,7]
[352806655,1739333444984,-500.0,0.00014,7]
[352806656,1739333444994,-500.0,0.00014,7]
[352806657,1739333445005,-500.0,0.00014,7]
[352806658,1739333445016,-603.13,0.00014,7]
[352806659,1739333445028,-500.0,0.00014,7]
[352806660,1739333445038,-500.0,0.00014,7]
[352806661,1739333445048,-500.0,0.00014,7]
[352806662,1739333445060,-500.0,0.00014,7]
[352806663,1739333445070,-500.0,0.00014,7]
[352806664,1739333445080,-500.0,0.00014,7]
[352806665,1739333445091,-500.0,0.00014,7]
[352806666,1739333445102,-500.0,0.00014,7]
[352806667,1739333445112,-500.0,0.00014,7]
[352806668,1739333445121,-500.0,0.00014,7]
[352806669,1739333445132,-500.0,0.00014,7]
[352806670,1739333445142,-500.0,0.00014,7]
[352806671,1739333445151,-500.0,0.00014,7]
[352806672,1739333445160,-500.0,0.00014,7]
[352806673,1739333445171,-500.0,0.00014,7]
[352806674,1739333445181,-500.0,0.00014,7]
[352806675,1739333445191,-500.0,0.00014,7]
[352806676,1739333445200,-500.0,0.00014,7]
[352806677,1739333445210,-500.0,0.00014,7]
[352806678,1739333445219,-300.0,0.00014,4]
[352806679,1739333445228,-500.0,0.00014061,2]
[352806680,1739333445239,-514.228614,0.00014061,2]
[352806681,1739333445249,-378.53207376,0.00014061,2]
[352806682,1739333445258,-172.41216199,0.00014071,2]
[352806683,1739333445268,-1022.41,0.00014071,2]
[352806684,1739333445277,-500.0,0.00014071,2]
[352806685,1739333445287,-500.0,0.00014071,2]
[352806686,1739333445297,-500.0,0.00014071,2]
[352806687,1739333445307,-500.0,0.00014071,2]
[352806688,1739333445316,-500.0,0.00014071,2]
[352806689,1739333445326,-523.36,0.00014071,2]
[352806690,1739333445336,-656.73,0.00014071,2]
[352806691,1739333445345,-500.0,0.00014071,2]
[352806692,1739333445356,-500.0,0.00014071,2]
[352806693,1739333445370,-500.0,0.00014071,2]
[352806694,1739333445380,-500.0,0.00014071,2]
[352806695,1739333445390,-746.18,0.00014071,2]
[352806696,1739333445509,-500.0,0.00014071,2]
[352806697,1739333445520,-500.0,0.00014071,2]
[352806698,1739333445530,-238.20614346,0.00014071,2]
[352806699,1739333445540,-500.0,0.00014071,2]
[352806700,1739333445549,-500.0,0.00014071,2]
[352806701,1739333445559,-539.6,0.00014071,2]
[352806702,1739333445569,-946.92,0.00014071,2]
[352806703,1739333445578,-500.0,0.00014071,2]
[352806704,1739333445588,-5775.53,0.00014071,2]
[352806705,1739333445597,-990.33,0.00014071,2]
[352806706,1739333445607,-397.59215599,0.00014072,2]
[352806707,1739333445617,-500.0,0.00014072,2]
[352806708,1739333445626,-500.0,0.00014072,2]
[352806709,1739333445635,-500.0,0.00014072,2]
[352806710,1739333445645,-500.0,0.00014072,2]
[352806711,1739333445654,-500.0,0.00014072,2]
[352806712,1739333445664,-579.2424811,0.00014072,2]
[352806713,1739333445675,-504.3205174,0.00014072,2]
[352806714,1739333445684,-500.0,0.00014072,2]
[352806715,1739333445693,-500.0,0.00014072,2]
[352806716,1739333445703,-500.0,0.00014072,2]
[352806717,1739333445712,-8515.34,0.00014072,2]
[352806718,1739333445722,-500.0,0.00014072,2]
[352806719,1739333445731,-3259.9,0.00014072,2]
[352806720,1739333445740,-500.0,0.00014072,2]
[352806721,1739333445750,-500.0,0.00014072,2]
[352806722,1739333445759,-500.0,0.00014072,2]
[352806723,1739333445768,-500.0,0.00014072,2]
[352806724,1739333445777,-281.22814296,0.00014072,2]
[352806725,1739333445787,-500.0,0.00014073,2]
[352806726,1739333445796,-500.0,0.00014074,2]
[352806727,1739333445806,-500.0,0.00014103,2]
[352806728,1739333445817,-500.0,0.00014103,2]
[352806729,1739333445827,-160.0,0.00014208,2]
[352806730,1739333445837,-1022.41,0.00014208,2]
[352806731,1739333445846,-500.0,0.00014208,2]
[352806732,1739333445856,-500.0,0.00014208,2]
[352806733,1739333445866,-500.0,0.00014208,2]
[352806734,1739333445875,-500.0,0.00014208,2]
[352806735,1739333445885,-500.0,0.00014208,2]
[352806736,1739333445895,-523.36,0.00014208,2]
[352806737,1739333445906,-656.73,0.00014208,2]
[352806738,1739333445916,-500.0,0.00014208,2]
[352806739,1739333445927,-500.0,0.00014208,2]
[352806740,1739333445937,-500.0,0.00014208,2]
[352806741,1739333445948,-500.0,0.00014208,2]
[352806742,1739333445957,-746.18,0.00014208,2]
[352806743,1739333445967,-500.0,0.00014208,2]
[352806744,1739333445977,-500.0,0.00014208,2]
[352806745,1739333445988,-500.0,0.00014208,2]
[352806746,1739333445998,-500.0,0.00014208,2]
[352806747,1739333446008,-539.6,0.00014208,2]
[352806748,1739333446018,-946.92,0.00014208,2]
[352806749,1739333446027,-408.61,0.00014208,2]
[352806750,1739333446037,-5775.53,0.00014208,2]
[352806751,1739333446047,-990.33,0.00014208,2]
[352806752,1739333446057,-544.90807468,0.00014209,2]
[352806753,1739333446067,-500.0,0.00014209,2]
[352806754,1739333446077,-500.0,0.00014209,2]
[352806755,1739333446086,-500.0,0.00014209,2]
[352806756,1739333446096,-500.0,0.00014209,2]
[352806757,1739333446105,-500.0,0.00014209,2]
[352806758,1739333446115,-8515.34,0.00014209,2]
[352806759,1739333446125,-500.0,0.00014209,2]
[352806760,1739333446135,-3259.9,0.00014209,2]
[352806761,1739333446145,-500.0,0.00014209,2]
[352806762,1739333446155,-433.25617481,0.00014209,2]
[352806763,1739333446165,-500.0,0.00014209,2]
[352806764,1739333446176,-500.0,0.00014209,2]
[352806765,1739333446185,-500.0,0.0001421,2]
[352806767,1739333446195,-152.37470391,0.00014211,2]
[352806769,1739333446204,-1022.41,0.00014345,2]
[352806771,1739333446214,-260.38,0.00014345,2]
[352806773,1739333446224,-500.0,0.00014345,2]
[352806775,1739333446234,-500.0,0.00014345,2]
[352806777,1739333446243,-500.0,0.00014345,2]
[352806779,1739333446254,-190.84941649,0.00014345,2]
[352806781,1739333446263,-523.36,0.00014345,2]
[352806783,1739333446273,-656.73,0.00014345,2]
[352806785,1739333446283,-230.42079951,0.00014345,2]
[352806787,1739333446292,-500.0,0.00014345,2]
[352806789,1739333446302,-500.0,0.00014345,2]
[352806791,1739333446312,-500.0,0.00014345,2]
[352806793,1739333446322,-500.0,0.00014345,2]
[352806795,1739333446333,-746.18,0.00014345,2]
[352806797,1739333446344,-500.0,0.00014345,2]
[352806799,1739333446354,-500.0,0.00014345,2]
[352806801,1739333446368,-500.0,0.00014345,2]
[352806803,1739333446378,-500.0,0.00014345,2]
[352806805,1739333446388,-539.6,0.00014345,2]
[352806806,1739333446398,-946.92,0.00014345,2]
[352806808,1739333446409,-5775.53,0.00014345,2]
[352806809,1739333446418,-990.33,0.00014345,2]
[352806810,1739333446429,-500.0,0.00014346,2]
[352806811,1739333446440,-296.75710932,0.00014346,2]
[352806812,1739333446450,-557.07909303,0.00014346,2]
[352806813,1739333446459,-500.0,0.00014346,2]
[352806814,1739333446470,-8515.34,0.00014346,2]
[352806815,1739333446480,-500.0,0.00014346,2]
[352806816,1739333446490,-3259.9,0.00014346,2]
[352806818,1739333446500,-500.0,0.00014346,2]
[352806820,1739333446509,-500.0,0.00014346,2]
[352806822,1739333446519,-500.0,0.00014346,2]
[352806825,1739333446528,-500.0,0.00014347,2]
[352806827,1739333446538,-172.41216199,0.00014393,2]
[352806829,1739333446547,-659.96207731,0.00014405,2]
[352806831,1739333446557,-1000.0,0.00014406,2]
[352806833,1739333446566,-575.42336901,0.00014406,2]
[352806835,1739333446576,-501.25242152,0.00014456,2]
[352806837,1739333446586,-1022.41,0.00014482,2]
[352806839,1739333446596,-500.0,0.00014482,2]
[352806841,1739333446606,-500.0,0.00014482,2]
[352806843,1739333446615,-500.0,0.00014482,2]
[352806844,1739333446625,-523.36,0.00014482,2]
[352806846,1739333446634,-656.73,0.00014482,2]
[352806848,1739333446644,-500.0,0.00014482,2]
[352806850,1739333446654,-500.0,0.00014482,2]
[352806852,1739333446664,-500.0,0.00014482,2]
[352806854,1739333446677,-500.0,0.00014482,2]
[352806856,1739333446686,-746.18,0.00014482,2]
[352806858,1739333446696,-500.0,0.00014482,2]
[352806860,1739333446706,-500.0,0.00014482,2]
[352806862,1739333446716,-500.0,0.00014482,2]
[352806864,1739333446726,-500.0,0.00014482,2]
[352806866,1739333446735,-539.6,0.00014482,2]
[352806868,1739333446745,-946.92,0.00014482,2]
[352806870,1739333446754,-5775.53,0.00014482,2]
[352806872,1739333446764,-990.33,0.00014482,2]
[352806873,1739333446774,-500.0,0.00014483,2]
[352806874,1739333446784,-8515.34,0.00014483,2]
[352806875,1739333446793,-500.0,0.00014483,2]
[352806876,1739333446803,-3259.9,0.00014483,2]
[352806877,1739333446814,-500.0,0.00014483,2]
[352806878,1739333446824,-500.0,0.00014483,2]
[352806879,1739333446833,-528.22492169,0.00014483,2]
[352806880,1739333446843,-442.73626233,0.00014484,2]
[352806881,1739333446852,-428.138784,0.00014493,2]
[352806882,1739333446862,-155.8142976,0.00014493,2]
[352806883,1739333446872,-313.3501289,0.00014493,2]
[352806884,1739333446882,-306.4532908,0.00014493,2]
[352806885,1739333446893,-8380.26,0.000145,2]
[352806886,1739333446904,-151.0,0.000146,2]
[352806887,1739333446913,-1000.0,0.00014608,2]
[352806888,1739333446927,-1022.41,0.00014619,2]
[352806889,1739333446936,-500.0,0.00014619,2]
[352806890,1739333446946,-500.0,0.00014619,2]
[352806891,1739333446956,-500.0,0.00014619,2]
[352806892,1739333446966,-523.36,0.00014619,2]
[352806893,1739333446976,-656.73,0.00014619,2]
[352806894,1739333446986,-500.0,0.00014619,2]
[352806895,1739333446996,-500.0,0.00014619,2]
[352806896,1739333447005,-500.0,0.00014619,2]
[352806897,1739333447015,-500.0,0.00014619,2]
[352806898,1739333447025,-746.18,0.00014619,2]
[352806899,1739333447035,-500.0,0.00014619,2]
[352806900,1739333447045,-500.0,0.00014619,2]
[352806901,1739333447054,-500.0,0.00014619,2]
[352806902,1739333447063,-500.0,0.00014619,2]
[352806903,1739333447072,-539.6,0.00014619,2]
[352806904,1739333447081,-946.92,0.00014619,2]
[352806905,1739333447091,-5775.53,0.00014619,2]
[352806906,1739333447101,-990.33,0.00014619,2]
[352806907,1739333447111,-500.0,0.0001462,2]
[352806908,1739333447122,-8515.34,0.0001462,2]
[352806909,1739333447132,-500.0,0.0001462,2]
[352806910,1739333447143,-3259.9,0.0001462,2]
[352806911,1739333447153,-500.0,0.0001462,2]
[352806912,1739333447163,-500.0,0.0001462,2]
[352806913,1739333447174,-151.0,0.0001462,2]
[352806914,1739333447184,-503.89903043,0.00014651,2]
[352806915,1739333447193,-1000.0,0.00014651,2]
[352806916,1739333447203,-8395.83962051,0.00014652,2]
[352806917,1739333447212,-151.0,0.000147,2]
[352806918,1739333447222,-1022.41,0.00014756,2]
[352806919,1739333447231,-500.0,0.00014756,2]
[352806920,1739333447241,-500.0,0.00014756,2]
[352806921,1739333447252,-500.0,0.00014756,2]
[352806922,1739333447262,-523.36,0.00014756,2]
[352806923,1739333447271,-656.73,0.00014756,2]
[352806924,1739333447281,-500.0,0.00014756,2]
[352806925,1739333447291,-500.0,0.00014756,2]
[352806926,1739333447302,-500.0,0.00014756,2]
[352806927,1739333447312,-584.4091153,0.00014756,2]
[352806928,1739333447322,-746.18,0.00014756,2]
[352806929,1739333447333,-183.01,0.00014756,2]
[352806930,1739333447342,-500.0,0.00014756,2]
[352806931,1739333447353,-500.0,0.00014756,2]
[352806932,1739333447367,-500.0,0.00014756,2]
[352806933,1739333447377,-539.6,0.00014756,2]
[352806934,1739333447387,-946.92,0.00014756,2]
[352806935,1739333447396,-5775.53,0.00014756,2]
[352806936,1739333447407,-990.33,0.00014756,2]
[352806937,1739333447416,-500.0,0.00014757,2]
[352806938,1739333447428,-8515.34,0.00014757,2]
[352806939,1739333447442,-500.0,0.00014757,2]
[352806940,1739333447453,-3259.9,0.00014757,2]
[352806941,1739333447464,-500.0,0.00014757,2]
[352806942,1739333447474,-151.0,0.00014757,2]
[352806943,1739333447484,-500.0,0.00014757,2]
[352806944,1739333447494,-2000.0,0.000148,6]
[352806945,1739333447504,-2000.0,0.000148,7]
[352806946,1739333447515,-1014.58,0.000148,8]
[352806947,1739333447525,-157.129204,0.000148,2]
[352806948,1739333447535,-151.0,0.000148,2]
[352806949,1739333447544,-151.0,0.000148,2]
[352806950,1739333447555,-151.0,0.000148,2]
[352806951,1739333447564,-151.0,0.000148,2]
[352806952,1739333447574,-151.0,0.000148,2]
[352806953,1739333447585,-151.0,0.000148,2]
[352806954,1739333447594,-10000.0,0.000148,2]
[352806955,1739333447604,-420.0,0.00014821,2]
[352806956,1739333447614,-314.2797794,0.00014849,2]
[352806957,1739333447624,-1022.41,0.00014893,2]
[352806958,1739333447633,-500.0,0.00014893,2]
[352806959,1739333447644,-500.0,0.00014893,2]
[352806960,1739333447655,-523.36,0.00014893,2]
[352806961,1739333447664,-656.73,0.00014893,2]
[352806962,1739333447675,-500.0,0.00014893,2]
[352806963,1739333447684,-500.0,0.00014893,2]
[352806964,1739333447694,-500.0,0.00014893,2]
[352806965,1739333447704,-746.18,0.00014893,2]
[352806966,1739333447714,-500.0,0.00014893,2]
[352806967,1739333447723,-353.53289875,0.00014893,2]
[352806968,1739333447733,-500.0,0.00014893,2]
[352806969,1739333447743,-539.6,0.00014893,2]
[352806970,1739333447752,-946.92,0.00014893,2]
[352806971,1739333447762,-5775.53,0.00014893,2]
[352806972,1739333447772,-990.33,0.00014893,2]
[352806973,1739333447782,-500.0,0.00014894,2]
[352806974,1739333447791,-185.18689,0.00014894,2]
[352806975,1739333447802,-185.18689,0.00014894,2]
[352806976,1739333447812,-151.596619,0.00014894,2]
[352806977,1739333447823,-152.465611,0.00014894,2]
[352806978,1739333447833,-151.0,0.00014894,2]
[352806979,1739333447842,-8515.34,0.00014894,2]
[352806980,1739333447852,-500.0,0.00014894,2]
[352806981,1739333447861,-3259.9,0.00014894,2]
[352806982,1739333447964,-611.54,0.00014894,2]
[352806983,1739333447976,-500.0,0.00014894,2]
[352806984,1739333447986,-659.96207731,0.00014896,2]
[352806985,1739333447997,-151.0,0.000149,2]
[352806986,1739333448018,-183.23515024,0.00014998,2]
[352806987,1739333448036,-61533.15803369,0.00014999,2]
[352806988,1739333448103,-43338.70547438,0.00014999,2]
[352806989,1739333448115,-3109.22222798,0.00014999,2]
[352806990,1739333448128,-4858.80833065,0.00014999,2]
[352806991,1739333448140,-12912.81018537,0.00014999,2]
[352806992,1739333448317,-4510.52,0.00013523,2]
[352806993,1739333448329,-4510.52,0.0001366,2]
[352806994,1739333448340,-4510.52,0.00013797,2]
[352806995,1739333448350,-4510.52,0.00013934,2]
[352806996,1739333448364,-4510.52,0.00014071,2]
[352806997,1739333448374,-4510.52,0.00014208,2]
[352806998,1739333448384,-1794.11189551,0.00014345,2]
[352806999,1739333448594,-500.0,0.00013524,2]
[352807000,1739333448605,-850.82926478,0.00014345,2]
[352807001,1739333448617,-1865.57883971,0.00014345,2]
[352807002,1739333448630,-4510.52,0.00014482,2]
[352807003,1739333448641,-4510.52,0.00014619,2]
[352807004,1739333448652,-373.22076904,0.00014756,2]
[352807005,1739333448760,-856.72,0.00013523,2]
[352807006,1739333448771,-4137.29923096,0.00014756,2]
[352807007,1739333448781,-4510.52,0.00014893,2]
[352807008,1739333448791,-61234.88326837,0.00014999,2]
[352807009,1739333448804,-2618.36578087,0.00014999,2]
[352807010,1739333448816,-10182.91853821,0.00014999,2]
[352807011,1739333448830,-1672.42509565,0.00014999,2]
[352807013,1739333566955,349.76,0.00010959,2]
[352807016,1739333703128,435.34316828,0.000107,2]
[352807019,1739334351136,-160.46632228,0.00013423,2]
[352807020,1739334351157,-300.0,0.0001352,2]
[352807021,1739334351178,-171.39127815,0.00013521,2]
[352807022,1739334373150,400.0,0.00010685,2]